NUMERO_MANDATO;RIGA_MANDATO;IMPORTO_RIGA;IMPORTO_MANDATO;BENEFICIARIO;CIG;TITOLO_PAGAMENTO;DATA_MANDATO;CAPITOLO;ARTICOLO;NUMERO_IMPEGNO;TITOLO;DESCR_TITOLO;LIVELLO_II;DESCR_LIVELLO_II;LIVELLO_III;DESCR_LIVELLO_III;LIVELLO_IV;DESCR_LIVELLO_IV;LIVELLO_V;DESCR_LIVELLO_V;DATA_PAG_EFF;
1322;1;"1.518,37";"2.126,72";FIORE SALVATORE VITTORIO; ;indennita' funzione mese di luglio 2017;01-08-2017;1001;0;42;1;Spese correnti;3;Acquisto di beni e servizi;2;Acquisto di servizi;1;Organi e incarichi istituzionali dell'amministrazione;1;Organi istituzionali dell'amministrazione - Indennità;2017-08-02;
1322;2;"152,83";"2.126,72";INTERDONATO ARMANDO; ;indennita' funzione mese di luglio 2017;01-08-2017;1001;0;42;1;Spese correnti;3;Acquisto di beni e servizi;2;Acquisto di servizi;1;Organi e incarichi istituzionali dell'amministrazione;1;Organi istituzionali dell'amministrazione - Indennità;2017-08-02;
1322;3;"228,76";"2.126,72";LAMANCUSA MARCO; ;indennita' funzione mese di luglio 2017;01-08-2017;1001;0;42;1;Spese correnti;3;Acquisto di beni e servizi;2;Acquisto di servizi;1;Organi e incarichi istituzionali dell'amministrazione;1;Organi istituzionali dell'amministrazione - Indennità;2017-08-02;
1322;4;"228,76";"2.126,72";PETTINATO  ROSA SANDRA; ;indennita' funzione mese di luglio 2017;01-08-2017;1001;0;42;1;Spese correnti;3;Acquisto di beni e servizi;2;Acquisto di servizi;1;Organi e incarichi istituzionali dell'amministrazione;1;Organi istituzionali dell'amministrazione - Indennità;2017-08-02;
1325;1;"0,01";"6.340,47";SOCIETA' COOP.  NUOVI ORIZZONTI ARL;6935897345;"SALDO Fatt.n. 24/P.A.  del 04/07/2017 SERVIZIO DI ASSISTENZA DOMICILIARE RIVOLTO AGLI ANZIANI, AI DIVERSAMENTE ABILI, AI MINORI ED AI NUCLEI FAMILIARI IN CONDIZIONI DI DISAGIO. - ANNO 2017 VERBALE DI AFFIDAMENTO PER L'ESECUZIONE D'URGENZA";01-08-2017;1878;2;329;1;Spese correnti;3;Acquisto di beni e servizi;2;Acquisto di servizi;15;Contratti di servizio pubblico;9;Contratti di servizio di assistenza sociale domiciliare;2017-08-02;
1325;2;"6.340,48";"6.340,47";SOCIETA' COOP.  NUOVI ORIZZONTI ARL;6935897345;"SALDO Fatt.n. 24/P.A.  del 04/07/2017 SERVIZIO DI ASSISTENZA DOMICILIARE RIVOLTO AGLI ANZIANI, AI DIVERSAMENTE ABILI, AI MINORI ED AI NUCLEI FAMILIARI IN CONDIZIONI DI DISAGIO. - ANNO 2017 VERBALE DI AFFIDAMENTO PER L'ESECUZIONE D'URGENZA";01-08-2017;1878;2;329;1;Spese correnti;3;Acquisto di beni e servizi;2;Acquisto di servizi;15;Contratti di servizio pubblico;9;Contratti di servizio di assistenza sociale domiciliare;2017-08-02;
1327;1;"167,65";"167,65";TELECOM ITALIA S.P.A.; ;SALDO Fatt.n. 8V00370269  del 10/07/2017 FATT. 4 BIM.2017 TEL.661033;02-08-2017;6040;9;428;1;Spese correnti;3;Acquisto di beni e servizi;2;Acquisto di servizi;5;Utenze e canoni;1;Telefonia fissa;2017-08-10;
1328;1;"0,01";"1.255,96";SINTESI DI ELISA TUCCIO;Z0F1EE8930;SALDO Fatt.n. 1/B  del 24/07/2017 storno parziale su fatt. n.61/pa del 12/06/17;02-08-2017;1030;4;155;1;Spese correnti;3;Acquisto di beni e servizi;1;Acquisto di beni;2;Altri beni di consumo;1;"Carta, cancelleria e stampati";2017-08-02;
1328;2;"1.255,97";"1.255,96";SINTESI DI ELISA TUCCIO;Z0F1EE8930;SALDO Fatt.n. 61/PA  del 12/06/2017 MANIFESTI ELETTORALI;02-08-2017;1030;4;155;1;Spese correnti;3;Acquisto di beni e servizi;1;Acquisto di beni;2;Altri beni di consumo;1;"Carta, cancelleria e stampati";2017-08-02;
1329;1;"180,00";"180,00";SINTESI DI ELISA TUCCIO;ZE61E9A440;ACCONTO Fatt.n. 59/PA  del 12/06/2017 CARTOLINE AVVISO ELETTORI RESIDENTI ALL'ESTERO;02-08-2017;1030;4;129;1;Spese correnti;3;Acquisto di beni e servizi;1;Acquisto di beni;2;Altri beni di consumo;1;"Carta, cancelleria e stampati";2017-08-02;
1330;1;"40,60";"40,60";SINTESI DI ELISA TUCCIO;ZE61E9A440;SALDO Fatt.n. 59/PA  del 12/06/2017 CARTOLINE AVVISO ELETTORI RESIDENTI ALL'ESTERO;02-08-2017;1030;4;195;1;Spese correnti;3;Acquisto di beni e servizi;1;Acquisto di beni;2;Altri beni di consumo;1;"Carta, cancelleria e stampati";2017-08-02;
1331;1;"9.906,80";"9.906,80";BENFATTA SALVATORE & C. S.N.C.;Z621F377DA;SALDO Fatt.n. 000005-2017-FATTURE  del 05/07/2017 IMPEGNO SPESA N.100 DEL 30/06/2017-LAVORI RIPRISTINO CONDOTTA IDRICA;02-08-2017;1570;0;183;1;Spese correnti;3;Acquisto di beni e servizi;2;Acquisto di servizi;9;Manutenzione ordinaria e riparazioni;11;Manutenzione ordinaria e riparazioni di altri beni materiali;2017-08-02;
1332;1;"354,45";"354,45";SINTESI DI ELISA TUCCIO;Z7B1EF1808;SALDO Fatt.n. 128/PA  del 05/07/2017 MANIFESTO ELEZIONI COMUNALI 11/06/17;02-08-2017;1030;4;169;1;Spese correnti;3;Acquisto di beni e servizi;1;Acquisto di beni;2;Altri beni di consumo;1;"Carta, cancelleria e stampati";2017-08-02;
1333;1;"1.428,50";"1.428,50";HALLEY SUD SRL;Z001C8D941;ACCONTO Fatt.n. 201700343  del 05/07/2017 Canone di assistenza Software dal 01/04/2017 al 30/06/2017;02-08-2017;2100;1;495;1;Spese correnti;3;Acquisto di beni e servizi;2;Acquisto di servizi;19;Servizi informatici e di telecomunicazioni;5;Servizi per i sistemi e relativa manutenzione;2017-08-02;
1334;1;"750,20";"750,20";HALLEY SUD SRL;Z001C8D941;SALDO Fatt.n. 201700343  del 05/07/2017 Canone di assistenza Software dal 01/04/2017 al 30/06/2017;02-08-2017;2100;2;496;1;Spese correnti;3;Acquisto di beni e servizi;2;Acquisto di servizi;19;Servizi informatici e di telecomunicazioni;5;Servizi per i sistemi e relativa manutenzione;2017-08-02;
1335;1;"5.014,60";"18.203,60";AZIENDA SICILIANA TRASPORTI;Z071B12FD8;SALDO Fatt.n. 84/S4  del 09/06/2017 ABB APRILE 2017;02-08-2017;2000;9;45;1;Spese correnti;3;Acquisto di beni e servizi;2;Acquisto di servizi;15;Contratti di servizio pubblico;2;Contratti di servizio di trasporto scolastico;2017-08-02;
1335;2;"6.578,80";"18.203,60";AZIENDA SICILIANA TRASPORTI;Z071B12FD8;SALDO Fatt.n. 101/S4  del 15/06/2017 ABBON. MAGGIO 2;02-08-2017;2000;9;45;1;Spese correnti;3;Acquisto di beni e servizi;2;Acquisto di servizi;15;Contratti di servizio pubblico;2;Contratti di servizio di trasporto scolastico;2017-08-02;
1335;3;"6.611,20";"18.203,60";AZIENDA SICILIANA TRASPORTI;Z071B12FD8;SALDO Fatt.n. 68/S4  del 09/06/2017 ABBON. MARZO 2017;02-08-2017;2000;9;45;1;Spese correnti;3;Acquisto di beni e servizi;2;Acquisto di servizi;15;Contratti di servizio pubblico;2;Contratti di servizio di trasporto scolastico;2017-08-02;
1341;1;"1.350,87";"1.350,87";Pi.Eco S.r.l.; ;SALDO Fatt.n. 69 2016  del 31/12/2016 CONFERMENTO RIFIUTI UMIDO ALIMENTARE DIC.2016;09-08-2017;2177;1;204;1;Spese correnti;10;Altre spese correnti;99;Altre spese correnti n.a.c.;99;Altre spese correnti n.a.c.;999;Altre spese correnti n.a.c.;2017-08-09;
1342;1;"450,00";"450,00";Eco.Geos S.r.l.;Z2C1E9B0DE;ACCONTO Fatt.n. 25|2017  del 11/07/2017 gestione centro raccolta rifiuti  19/06-30/06/2017;09-08-2017;1744;0;411;1;Spese correnti;3;Acquisto di beni e servizi;2;Acquisto di servizi;15;Contratti di servizio pubblico;5;Contratti di servizio per il conferimento in discarica dei rifiuti;2017-08-09;
1343;1;"375,00";"375,00";Eco.Geos S.r.l.;Z2C1E9B0DE;SALDO Fatt.n. 25|2017  del 11/07/2017 gestione centro raccolta rifiuti  19/06-30/06/2017;09-08-2017;1744;0;411;1;Spese correnti;3;Acquisto di beni e servizi;2;Acquisto di servizi;15;Contratti di servizio pubblico;5;Contratti di servizio per il conferimento in discarica dei rifiuti;2017-08-09;
1344;1;"19.793,51";"19.793,51";Eco.Geos S.r.l.;6982986E54;SALDO Fatt.n. 26|2017  del 11/07/2017 raccolta rifiuti porta a porta giugno 2017;09-08-2017;1744;0;411;1;Spese correnti;3;Acquisto di beni e servizi;2;Acquisto di servizi;15;Contratti di servizio pubblico;5;Contratti di servizio per il conferimento in discarica dei rifiuti;2017-08-09;
1345;1;"3.938,89";"3.938,89";SOCIETA' COOP.  NUOVI ORIZZONTI ARL;ZF61EOF9D7;SALDO Fatt.n. 28/P.A.  del 14/07/2017 INTERVENTI IN FAVORE DELLE PERSONE IN CONDIZIONE DI DISABILITA' GRAVISSIMA/2014;09-08-2017;1884;1;456;1;Spese correnti;4;Trasferimenti correnti;2;Trasferimenti correnti a Famiglie;1;Interventi previdenziali;999;Altri sussidi e assegni;2017-08-09;
1346;1;"586,59";"586,59";T.A.I. SRL;ZAE1B134A8;SALDO Fatt.n. FATTPA 11_17  del 14/07/2017 TRASPORTO STUDENTI MAGGIO 2017;09-08-2017;2000;9;47;1;Spese correnti;3;Acquisto di beni e servizi;2;Acquisto di servizi;15;Contratti di servizio pubblico;2;Contratti di servizio di trasporto scolastico;2017-08-09;
1347;1;"2.855,30";"2.855,30";BENFATTA SALVATORE & C. S.N.C.;Z361FSED38;SALDO Fatt.n. 000006-2017-FATTURE  del 19/07/2017 IMPEGNO SPESA N.110 DEL 18/07/2017-LAVORI SOMMA URGENZA PER RIPRISTINO CONDOTTA IDRICA;09-08-2017;4035;0;192;2;Spese in conto capitale;2;Investimenti fissi lordi e acquisto di terreni;1;Beni materiali;9;Beni immobili;13;Altre vie di comunicazione;2017-08-09;
1348;1;"350,00";"1.400,00";LANZILLOTTI ISIDORO; ;ATTUAZIONE PROGETTO LAVORI SOCIALMENTE UTILI;09-08-2017;1900;0;154;1;Spese correnti;4;Trasferimenti correnti;2;Trasferimenti correnti a Famiglie;1;Interventi previdenziali;999;Altri sussidi e assegni;2017-08-09;
1348;2;"350,00";"1.400,00";SARDO MARIANGELA; ;ATTUAZIONE PROGETTO LAVORI SOCIALMENTE UTILI;09-08-2017;1900;0;154;1;Spese correnti;4;Trasferimenti correnti;2;Trasferimenti correnti a Famiglie;1;Interventi previdenziali;999;Altri sussidi e assegni;2017-08-10;
1348;3;"350,00";"1.400,00";SCHEPISI FRANCO; ;ATTUAZIONE PROGETTO LAVORI SOCIALMENTE UTILI;09-08-2017;1900;0;154;1;Spese correnti;4;Trasferimenti correnti;2;Trasferimenti correnti a Famiglie;1;Interventi previdenziali;999;Altri sussidi e assegni;2017-08-09;
1348;4;"350,00";"1.400,00";TROVATO SALVATORE; ;ATTUAZIONE PROGETTO LAVORI SOCIALMENTE UTILI;09-08-2017;1900;0;154;1;Spese correnti;4;Trasferimenti correnti;2;Trasferimenti correnti a Famiglie;1;Interventi previdenziali;999;Altri sussidi e assegni;2017-08-09;
1349;1;"567,37";"567,37";GAS NATURALVENDITA ITALIA SPA; ;SALDO Fatt.n. FI17366000001647  del 23/02/2017 CANONI E CONSUMI GAS METANO 14/06/2016-23/02/2017;09-08-2017;6160;1;527;1;Spese correnti;3;Acquisto di beni e servizi;2;Acquisto di servizi;5;Utenze e canoni;999;Utenze e canoni per altri servizi n.a.c.;2017-08-22;
1350;1;"56,68";"56,68";GAS NATURALVENDITA ITALIA SPA; ;SALDO Fatt.n. FI17366000005799  del 24/07/2017 CANONI E CONSUMI GAS METANO 07/06-24/07/2017;09-08-2017;6160;3;433;1;Spese correnti;3;Acquisto di beni e servizi;2;Acquisto di servizi;5;Utenze e canoni;6;Gas;2017-08-22;
1351;1;"648,67";"648,67";SICULA TRASPORTI S.R.L.;6150991658;ACCONTO Fatt.n. 1660/03  del 30/11/2016 CONFERIMENTO RRSSUU NOV.2016;09-08-2017;1743;0;480;1;Spese correnti;3;Acquisto di beni e servizi;2;Acquisto di servizi;15;Contratti di servizio pubblico;5;Contratti di servizio per il conferimento in discarica dei rifiuti;2017-08-09;
1352;1;"2.912,22";"10.831,39";SICULA TRASPORTI S.R.L.;6150991658;SALDO Fatt.n. 1871/03  del 31/12/2016 CONFERIMENTO RIFIUTI DIC.2016;09-08-2017;2177;1;205;1;Spese correnti;10;Altre spese correnti;99;Altre spese correnti n.a.c.;99;Altre spese correnti n.a.c.;999;Altre spese correnti n.a.c.;2017-08-09;
1352;2;"7.919,17";"10.831,39";SICULA TRASPORTI S.R.L.;6150991658;SALDO Fatt.n. 1660/03  del 30/11/2016 CONFERIMENTO RRSSUU NOV.2016;09-08-2017;2177;1;205;1;Spese correnti;10;Altre spese correnti;99;Altre spese correnti n.a.c.;99;Altre spese correnti n.a.c.;999;Altre spese correnti n.a.c.;2017-08-09;
1353;1;"25,88";"25,88";TESORIERE COMUNALE-CREDITO SICILIANO; ;TELEPASS LUG.2017;09-08-2017;1017;0;38;1;Spese correnti;3;Acquisto di beni e servizi;2;Acquisto di servizi;99;Altri servizi;999;Altri servizi diversi n.a.c.;2017-08-09;
1354;1;"45,95";"45,95";KUWAIT PETROLEUM ITALIA S.P.A.;6516542493;Fatt.n. PJ00086962 del 30/06/2017 CARBURANTE AUTOMEZZI COMUNALI GIU.2017;09-08-2017;6080;1;24;1;Spese correnti;3;Acquisto di beni e servizi;1;Acquisto di beni;2;Altri beni di consumo;2;"Carburanti, combustibili e lubrificanti";2017-08-09;
1355;1;"105,68";"105,68";KUWAIT PETROLEUM ITALIA S.P.A.;6516542493;Fatt.n. PJ00086962 del 30/06/2017 CARBURANTE AUTOMEZZI COMUNALI GIU.2017;09-08-2017;6080;2;25;1;Spese correnti;3;Acquisto di beni e servizi;1;Acquisto di beni;2;Altri beni di consumo;2;"Carburanti, combustibili e lubrificanti";2017-08-09;
1356;1;"357,80";"357,80";KUWAIT PETROLEUM ITALIA S.P.A.;6516542493;Fatt.n. PJ00086962 del 30/06/2017 CARBURANTE AUTOMEZZI COMUNALI GIU.2017;09-08-2017;6080;3;26;1;Spese correnti;3;Acquisto di beni e servizi;1;Acquisto di beni;2;Altri beni di consumo;2;"Carburanti, combustibili e lubrificanti";2017-08-09;
1357;1;"343,89";"343,89";KUWAIT PETROLEUM ITALIA S.P.A.;6516542493;Fatt.n. PJ00086962 del 30/06/2017 CARBURANTE AUTOMEZZI COMUNALI GIU.2017;09-08-2017;6080;4;27;1;Spese correnti;3;Acquisto di beni e servizi;1;Acquisto di beni;2;Altri beni di consumo;2;"Carburanti, combustibili e lubrificanti";2017-08-09;
1358;1;"670,11";"670,11";KUWAIT PETROLEUM ITALIA S.P.A.;6516542493;Fatt.n. PJ00086962 del 30/06/2017 CARBURANTE AUTOMEZZI COMUNALI GIU.2017;09-08-2017;6080;5;28;1;Spese correnti;3;Acquisto di beni e servizi;1;Acquisto di beni;2;Altri beni di consumo;2;"Carburanti, combustibili e lubrificanti";2017-08-09;
1359;1;"38,65";"38,65";KUWAIT PETROLEUM ITALIA S.P.A.;6516542493;Fatt.n. PJ00086962 del 30/06/2017 CARBURANTE AUTOMEZZI COMUNALI GIU.2017;09-08-2017;6080;7;29;1;Spese correnti;3;Acquisto di beni e servizi;1;Acquisto di beni;2;Altri beni di consumo;2;"Carburanti, combustibili e lubrificanti";2017-08-09;
1366;1;"1.526,60";"1.526,60";TESORIERE COMUNALE-CREDITO SICILIANO;6343524999;INCAMERAMENTO SOMME Lavori manutenzione straordinaria e messa a norma impianti istituto comprensivo- SALDO COMP. RUP;21-08-2017;4056;1;373;2;Spese in conto capitale;5;Altre spese in conto capitale;99;Altre spese in conto capitale n.a.c.;99;Altre spese in conto capitale n.a.c.;999;Altre spese in conto capitale n.a.c.;2017-08-28;
1429;1;"112.606,00";"112.606,00";COSMAK S.R.L.;694246602F;SALDO Fatt.n. 8/E  del 18/07/2017 I S.A.L. RISTRUTTURAZIONER E AMMODERNAMENTO MARCIAPIEDE VIA N.DANTE;23-08-2017;5087;1;137;2;Spese in conto capitale;2;Investimenti fissi lordi e acquisto di terreni;1;Beni materiali;9;Beni immobili;13;Altre vie di comunicazione;2017-08-23;
1431;1;"373,64";"373,64";SCAFIDI GIUSEPPE;ZC417E0C95;SALDO Fatt.n. 000035-2017-FE  del 25/07/2017 RIFERIMENTO PREVENTIVO N.35/2017 DEL 07/06/2017 SU AUTOBOTTE TG ME394965;23-08-2017;6070;5;405;1;Spese correnti;3;Acquisto di beni e servizi;2;Acquisto di servizi;9;Manutenzione ordinaria e riparazioni;1;"Manutenzione ordinaria e riparazioni di mezzi di trasporto ad uso civile, di sicurezza e ordine pubblico";2017-08-23;
1432;1;"7.612,57";"7.612,57";SICULA TRASPORTI S.R.L.;6150991658;ACCONTO Fatt.n. 1288/03  del 30/06/2017 CONF. RIFIUTI GIUGNO  2017;23-08-2017;1743;0;261;1;Spese correnti;3;Acquisto di beni e servizi;2;Acquisto di servizi;15;Contratti di servizio pubblico;5;Contratti di servizio per il conferimento in discarica dei rifiuti;2017-08-23;
1433;1;"1.800,10";"1.800,10";SICULA TRASPORTI S.R.L.;6150991658;SALDO Fatt.n. 1288/03  del 30/06/2017 CONF. RIFIUTI GIUGNO  2017;23-08-2017;1743;0;262;1;Spese correnti;3;Acquisto di beni e servizi;2;Acquisto di servizi;15;Contratti di servizio pubblico;5;Contratti di servizio per il conferimento in discarica dei rifiuti;2017-08-23;
1434;1;"7,40";"7,40";NASELLO GIUSEPPE; ;commissario straord. D.A.  N.235 DEL 25/10/2016 - rimborso spese di viaggio gg.16/03/17-29/03/17-21/04/17-08/05/17-11/05/17-29/05/17 e 14/06/17 acconto;23-08-2017;1002;0;54;1;Spese correnti;3;Acquisto di beni e servizi;2;Acquisto di servizi;1;Organi e incarichi istituzionali dell'amministrazione;1;Organi istituzionali dell'amministrazione - Indennità;2017-08-23;
1435;1;"1.351,94";"1.351,94";NASELLO GIUSEPPE; ;commissario straord. D.A.  N.235 DEL 25/10/2016 - rimborso spese di viaggio gg.16/03/17-29/03/17-21/04/17-08/05/17-11/05/17-29/05/17 e 14/06/17 acconto;23-08-2017;1002;0;187;1;Spese correnti;3;Acquisto di beni e servizi;2;Acquisto di servizi;1;Organi e incarichi istituzionali dell'amministrazione;1;Organi istituzionali dell'amministrazione - Indennità;2017-08-23;
1436;1;"1.540,00";"1.540,00";REGIONE SICILIANA; ;D.A. 235 DEL 25/10/2016-INDENNITA' 01/05-14/06/2017;23-08-2017;1002;0;187;1;Spese correnti;3;Acquisto di beni e servizi;2;Acquisto di servizi;1;Organi e incarichi istituzionali dell'amministrazione;1;Organi istituzionali dell'amministrazione - Indennità;2017-08-23;
1438;1;"589,15";"589,15";ENEL ENERGIA SPA; ;SALDO Fatt.n. 004801121415  del 12/08/2017 FATT. LUG.2017;24-08-2017;6030;5;412;1;Spese correnti;3;Acquisto di beni e servizi;2;Acquisto di servizi;5;Utenze e canoni;4;Energia elettrica;2017-08-25;
1439;1;"178,10";"4.578,57";ENEL ENERGIA SPA; ;SALDO Fatt.n. 004801121413  del 12/08/2017 FATT. I.P.;24-08-2017;6030;12;419;1;Spese correnti;3;Acquisto di beni e servizi;2;Acquisto di servizi;5;Utenze e canoni;4;Energia elettrica;2017-08-25;
1439;2;"4.399,47";"4.578,57";ENEL ENERGIA SPA; ;SALDO Fatt.n. 004801121414  del 12/08/2017 FATT. I.P.  LUG.2017;24-08-2017;6030;12;419;1;Spese correnti;3;Acquisto di beni e servizi;2;Acquisto di servizi;5;Utenze e canoni;4;Energia elettrica;2017-08-25;
1441;1;"1.534,01";"1.534,01";Pi.Eco S.r.l.;Z1D1B9D2D9;SALDO Fatt.n. 101  del 31/07/2017 CONF. RIFIUTI GIU.2017;24-08-2017;1743;0;259;1;Spese correnti;3;Acquisto di beni e servizi;2;Acquisto di servizi;15;Contratti di servizio pubblico;5;Contratti di servizio per il conferimento in discarica dei rifiuti;2017-08-25;
1448;1;"27.990,93";"27.990,93";Eco.Geos S.r.l.;Z381F3464B;SALDO Fatt.n. 28|2017  del 31/07/2017 SERVIZIO RACCOLTA RIFIUTI LUGLIO 2017;30-08-2017;1744;0;411;1;Spese correnti;3;Acquisto di beni e servizi;2;Acquisto di servizi;15;Contratti di servizio pubblico;5;Contratti di servizio per il conferimento in discarica dei rifiuti;2017-08-30;
1449;1;"3.363,31";"3.363,31";LO PRESTI GIORGIO;ZA01CBD6FC;SALDO Fatt.n. FATTPA 4_17  del 03/08/2017 3 SAL SISTEMAZIONE STRADE COMUNALI;30-08-2017;10500;4;543;2;Spese in conto capitale;2;Investimenti fissi lordi e acquisto di terreni;1;Beni materiali;9;Beni immobili;13;Altre vie di comunicazione;2017-08-30;
1450;1;"2.885,30";"2.885,30";HALLEY CONSULTING;ZE91C8D94E;SALDO Fatt.n. 20171057  del 05/07/2017 FATTURA ELETTRONICA;30-08-2017;2100;1;346;1;Spese correnti;3;Acquisto di beni e servizi;2;Acquisto di servizi;19;Servizi informatici e di telecomunicazioni;5;Servizi per i sistemi e relativa manutenzione;2017-08-30;
1451;1;"3.514,60";"3.514,60";STUDIO K SRL; ;SALDO Fatt.n. 0002101646  del 19/07/2017 CANONE ASSISTENZA ANNO 2017;31-08-2017;2100;0;182;1;Spese correnti;3;Acquisto di beni e servizi;2;Acquisto di servizi;19;Servizi informatici e di telecomunicazioni;5;Servizi per i sistemi e relativa manutenzione;2017-09-04;
1454;1;"1.518,37";"2.126,72";FIORE SALVATORE VITTORIO; ;indennita' funzione mese di agosto 2017;01-09-2017;1001;0;42;1;Spese correnti;3;Acquisto di beni e servizi;2;Acquisto di servizi;1;Organi e incarichi istituzionali dell'amministrazione;1;Organi istituzionali dell'amministrazione - Indennità;2017-09-04;
1454;2;"152,83";"2.126,72";INTERDONATO ARMANDO; ;indennita' funzione mese di agosto 2017;01-09-2017;1001;0;42;1;Spese correnti;3;Acquisto di beni e servizi;2;Acquisto di servizi;1;Organi e incarichi istituzionali dell'amministrazione;1;Organi istituzionali dell'amministrazione - Indennità;2017-09-04;
1454;3;"228,76";"2.126,72";LAMANCUSA MARCO; ;indennita' funzione mese di agosto 2017;01-09-2017;1001;0;42;1;Spese correnti;3;Acquisto di beni e servizi;2;Acquisto di servizi;1;Organi e incarichi istituzionali dell'amministrazione;1;Organi istituzionali dell'amministrazione - Indennità;2017-09-04;
1454;4;"228,76";"2.126,72";PETTINATO  ROSA SANDRA; ;indennita' funzione mese di agosto 2017;01-09-2017;1001;0;42;1;Spese correnti;3;Acquisto di beni e servizi;2;Acquisto di servizi;1;Organi e incarichi istituzionali dell'amministrazione;1;Organi istituzionali dell'amministrazione - Indennità;2017-09-04;
1455;1;"11.217,62";"11.217,62";TROVATO ORNELLA; ;INDENNITA' FINE MANDATO AL SINDACO DAL 09/05/2012 AL 11/06/2017;01-09-2017;1001;6;263;1;Spese correnti;3;Acquisto di beni e servizi;2;Acquisto di servizi;1;Organi e incarichi istituzionali dell'amministrazione;1;Organi istituzionali dell'amministrazione - Indennità;2017-09-04;
1456;1;"2.500,00";"2.500,00";CINTIOLI FULVIO; ;SALDO Fatt.n. 11E  del 07/03/2017 DETERMINA SINDACALE N. 48 DEL 06.08.2010.;01-09-2017;1058;2;322;1;Spese correnti;3;Acquisto di beni e servizi;2;Acquisto di servizi;99;Altri servizi;2;Altre spese legali;2017-09-04;
1457;1;"499,72";"499,72";CIRCOLO CASINO DI COMPAGNIA; ;RIMBORSO SPESE ENERGIA ELETTRICA CASINO DI COMPAGNIA;01-09-2017;1505;1;217;1;Spese correnti;4;Trasferimenti correnti;3;Trasferimenti correnti a Imprese;99;Trasferimenti correnti a altre imprese;999;Trasferimenti correnti a altre imprese;2017-09-07;
1458;1;"1.034,22";"1.034,22";ORIFICI CARMELO-MARTINO CARMELA; ;canone locazione LUG./SETT. 2017;01-09-2017;2230;0;118;1;Spese correnti;3;Acquisto di beni e servizi;2;Acquisto di servizi;7;Utilizzo di beni di terzi;5;Fitti di terreni e giacimenti;2017-09-04;
1461;1;"0,01";"6.340,47";SOCIETA' COOP.  NUOVI ORIZZONTI ARL;6935897345;"SALDO Fatt.n. 30/P.A.  del 04/08/2017 SERVIZIO DI ASSISTENZA DOMICILIARE RIVOLTO AGLI ANZIANI, AI DIVERSAMENTE ABILI, AI MINORI ED AI NUCLEI FAMILIARI IN CONDIZIONI DI DISAGIO. - ANNO 2017 VERBALE DI AFFIDAMENTO PER L'ESECUZIONE D'URGENZA";05-09-2017;1878;2;329;1;Spese correnti;3;Acquisto di beni e servizi;2;Acquisto di servizi;15;Contratti di servizio pubblico;9;Contratti di servizio di assistenza sociale domiciliare;2017-09-05;
1461;2;"6.340,48";"6.340,47";SOCIETA' COOP.  NUOVI ORIZZONTI ARL;6935897345;"SALDO Fatt.n. 30/P.A.  del 04/08/2017 SERVIZIO DI ASSISTENZA DOMICILIARE RIVOLTO AGLI ANZIANI, AI DIVERSAMENTE ABILI, AI MINORI ED AI NUCLEI FAMILIARI IN CONDIZIONI DI DISAGIO. - ANNO 2017 VERBALE DI AFFIDAMENTO PER L'ESECUZIONE D'URGENZA";05-09-2017;1878;2;329;1;Spese correnti;3;Acquisto di beni e servizi;2;Acquisto di servizi;15;Contratti di servizio pubblico;9;Contratti di servizio di assistenza sociale domiciliare;2017-09-05;
1462;1;"74,49";"3.053,63";TELECOM ITALIA S.P.A.; ;Fatt.n. 8V00407012 del 07/08/2017 5BIM 2017;05-09-2017;6040;5;426;1;Spese correnti;3;Acquisto di beni e servizi;2;Acquisto di servizi;5;Utenze e canoni;1;Telefonia fissa;2017-09-19;
1462;2;"389,34";"3.053,63";TELECOM ITALIA S.P.A.; ;Fatt.n. 8V00408495 del 07/08/2017 5BIM 2017;05-09-2017;6040;5;426;1;Spese correnti;3;Acquisto di beni e servizi;2;Acquisto di servizi;5;Utenze e canoni;1;Telefonia fissa;2017-09-19;
1462;3;"793,00";"3.053,63";TELECOM ITALIA S.P.A.; ;Fatt.n. 8V00407345 del 07/08/2017 5BIM 2017;05-09-2017;6040;5;426;1;Spese correnti;3;Acquisto di beni e servizi;2;Acquisto di servizi;5;Utenze e canoni;1;Telefonia fissa;2017-09-19;
1462;4;"834,26";"3.053,63";TELECOM ITALIA S.P.A.; ;Fatt.n. 8V00407084 del 07/08/2017 5BIM 2017;05-09-2017;6040;5;426;1;Spese correnti;3;Acquisto di beni e servizi;2;Acquisto di servizi;5;Utenze e canoni;1;Telefonia fissa;2017-09-19;
1462;5;"962,54";"3.053,63";TELECOM ITALIA S.P.A.; ;Fatt.n. 4220917800008426 del 07/08/2017 5BIM 2017;05-09-2017;6040;5;426;1;Spese correnti;3;Acquisto di beni e servizi;2;Acquisto di servizi;5;Utenze e canoni;1;Telefonia fissa;2017-09-19;
1463;1;"76,39";"204,05";TELECOM ITALIA S.P.A.; ;Fatt.n. 8V00407817 del 07/08/2017 5BIM 2017;05-09-2017;6040;6;427;1;Spese correnti;3;Acquisto di beni e servizi;2;Acquisto di servizi;5;Utenze e canoni;1;Telefonia fissa;2017-09-19;
1463;2;"128,66";"204,05";TELECOM ITALIA S.P.A.; ;Fatt.n. 4220917800008431 del 07/08/2017 5BIM 2017;05-09-2017;6040;6;427;1;Spese correnti;3;Acquisto di beni e servizi;2;Acquisto di servizi;5;Utenze e canoni;1;Telefonia fissa;2017-09-19;
1464;1;"76,39";"196,21";TELECOM ITALIA S.P.A.; ;Fatt.n. 8V00407568 del 07/08/2017 5BIM 2017;05-09-2017;6040;10;429;1;Spese correnti;3;Acquisto di beni e servizi;2;Acquisto di servizi;5;Utenze e canoni;1;Telefonia fissa;2017-09-19;
1464;2;"120,82";"196,21";TELECOM ITALIA S.P.A.; ;Fatt.n. 4220917800008426 del 07/08/2017 5BIM 2017;05-09-2017;6040;10;429;1;Spese correnti;3;Acquisto di beni e servizi;2;Acquisto di servizi;5;Utenze e canoni;1;Telefonia fissa;2017-09-19;
1465;1;"1.114,90";"1.114,90";AZIENDA SICILIANA TRASPORTI;Z071B12FD8;SALDO Fatt.n. 106/S4  del 26/07/2017 ABBON. GIGNO 2017;05-09-2017;2000;9;45;1;Spese correnti;3;Acquisto di beni e servizi;2;Acquisto di servizi;15;Contratti di servizio pubblico;2;Contratti di servizio di trasporto scolastico;2017-09-05;
1466;1;"111,45";"111,45";GAS NATURALVENDITA ITALIA SPA; ;Fatt.n. FI17366000006558 del 24/08/2017 canoni e consumi gas metano dal 24/06 al 24/08/2017;05-09-2017;6160;0;430;1;Spese correnti;3;Acquisto di beni e servizi;2;Acquisto di servizi;5;Utenze e canoni;6;Gas;2017-09-14;
1467;1;"60,07";"60,07";GAS NATURALVENDITA ITALIA SPA; ;Fatt.n. FI17366000006557 del 24/08/2017 canoni e consumi gas metano dal 24/06 al 24/08/2017;05-09-2017;6160;1;431;1;Spese correnti;3;Acquisto di beni e servizi;2;Acquisto di servizi;5;Utenze e canoni;999;Utenze e canoni per altri servizi n.a.c.;2017-09-14;
1468;1;"32,66";"32,66";GAS NATURALVENDITA ITALIA SPA; ;Fatt.n. FI17366000007334 del 24/08/2017 canoni e consumi gas metano dal 24/06 al 24/08/2017;05-09-2017;6160;2;432;1;Spese correnti;3;Acquisto di beni e servizi;2;Acquisto di servizi;5;Utenze e canoni;999;Utenze e canoni per altri servizi n.a.c.;2017-09-14;
1469;1;"56,03";"56,03";GAS NATURALVENDITA ITALIA SPA; ;Fatt.n. FI17366000007252 del 24/08/2017 canoni e consumi gas metano dal 07/06 al 24/08/2017;05-09-2017;6160;3;433;1;Spese correnti;3;Acquisto di beni e servizi;2;Acquisto di servizi;5;Utenze e canoni;6;Gas;2017-09-14;
1470;1;"1.290,00";"1.290,00";GENOVESE VENERA SEBASTIANA;ZD61C1F539;SALDO Fatt.n. 4 / FE  del 28/06/2017 autocontrollo sanitario mensa scolastica a.s.2016/2017;05-09-2017;2000;26;278;1;Spese correnti;3;Acquisto di beni e servizi;2;Acquisto di servizi;15;Contratti di servizio pubblico;6;Contratti di servizio per le mense scolastiche;2017-09-05;
1471;1;"26,95";"26,95";TESORIERE COMUNALE-CREDITO SICILIANO; ;TELEPASS AGOSTO 2017;06-09-2017;1017;0;38;1;Spese correnti;3;Acquisto di beni e servizi;2;Acquisto di servizi;99;Altri servizi;999;Altri servizi diversi n.a.c.;2017-09-06;
1472;1;"600,00";"600,00";ANUTEL; ;QUOTA ADESIONE ANNO 2017;06-09-2017;1060;4;266;1;Spese correnti;4;Trasferimenti correnti;3;Trasferimenti correnti a Imprese;99;Trasferimenti correnti a altre imprese;999;Trasferimenti correnti a altre imprese;2017-09-06;
1478;1;"225,83";"225,83";AL CENTESIMO SOC. COOP. S.R.L.;ZD01C2A31C;SALDO Fatt.n. 20/E  del 30/06/2017 CARNE PER ASILO NIDO MAG.2017;08-09-2017;1776;1;197;1;Spese correnti;3;Acquisto di beni e servizi;1;Acquisto di beni;2;Altri beni di consumo;999;Altri beni e materiali di consumo n.a.c.;2017-09-08;
1479;1;"0,03";"1.324,49";AL CENTESIMO SOC. COOP. S.R.L.;ZD01C2A31C;SALDO Fatt.n. 19/E  del 30/06/2017 GENERI ALIMENTARI EMATERIALE D'USO PER ASILO NIDO  MAGGIO 2017;08-09-2017;1776;1;197;1;Spese correnti;3;Acquisto di beni e servizi;1;Acquisto di beni;2;Altri beni di consumo;999;Altri beni e materiali di consumo n.a.c.;2017-09-08;
1479;2;"1.325,52";"1.324,49";AL CENTESIMO SOC. COOP. S.R.L.;ZD01C2A31C;SALDO Fatt.n. 19/E  del 30/06/2017 GENERI ALIMENTARI EMATERIALE D'USO PER ASILO NIDO  MAGGIO 2017;08-09-2017;1776;1;197;1;Spese correnti;3;Acquisto di beni e servizi;1;Acquisto di beni;2;Altri beni di consumo;999;Altri beni e materiali di consumo n.a.c.;2017-09-08;
1483;1;"71,52";"71,52";KUWAIT PETROLEUM ITALIA S.P.A.;6516542493;Fatt.n. PJ00090857 del 31/07/2017 CARBURANTE AUTOMEZZI COM.LI LUG.2017;12-09-2017;6080;1;24;1;Spese correnti;3;Acquisto di beni e servizi;1;Acquisto di beni;2;Altri beni di consumo;2;"Carburanti, combustibili e lubrificanti";2017-09-12;
1484;1;"128,60";"128,60";KUWAIT PETROLEUM ITALIA S.P.A.;6516542493;Fatt.n. PJ00090857 del 31/07/2017 CARBURANTE AUTOMEZZI COM.LI LUG.2017;12-09-2017;6080;2;25;1;Spese correnti;3;Acquisto di beni e servizi;1;Acquisto di beni;2;Altri beni di consumo;2;"Carburanti, combustibili e lubrificanti";2017-09-12;
1485;1;"196,20";"196,20";KUWAIT PETROLEUM ITALIA S.P.A.;6516542493;Fatt.n. PJ00090857 del 31/07/2017 CARBURANTE AUTOMEZZI COM.LI LUG.2017;12-09-2017;6080;3;26;1;Spese correnti;3;Acquisto di beni e servizi;1;Acquisto di beni;2;Altri beni di consumo;2;"Carburanti, combustibili e lubrificanti";2017-09-12;
1486;1;"348,64";"348,64";KUWAIT PETROLEUM ITALIA S.P.A.;6516542493;Fatt.n. PJ00090857 del 31/07/2017 CARBURANTE AUTOMEZZI COM.LI LUG.2017;12-09-2017;6080;4;27;1;Spese correnti;3;Acquisto di beni e servizi;1;Acquisto di beni;2;Altri beni di consumo;2;"Carburanti, combustibili e lubrificanti";2017-09-12;
1487;1;"919,80";"919,80";KUWAIT PETROLEUM ITALIA S.P.A.;6516542493;Fatt.n. PJ00090857 del 31/07/2017 CARBURANTE AUTOMEZZI COM.LI LUG.2017;12-09-2017;6080;5;28;1;Spese correnti;3;Acquisto di beni e servizi;1;Acquisto di beni;2;Altri beni di consumo;2;"Carburanti, combustibili e lubrificanti";2017-09-12;
1488;1;"50,38";"50,38";KUWAIT PETROLEUM ITALIA S.P.A.;6516542493;Fatt.n. PJ00090857 del 31/07/2017 CARBURANTE AUTOMEZZI COM.LI LUG.2017;12-09-2017;6080;7;29;1;Spese correnti;3;Acquisto di beni e servizi;1;Acquisto di beni;2;Altri beni di consumo;2;"Carburanti, combustibili e lubrificanti";2017-09-12;
1490;1;"284,65";"284,65";CARTAREGIA COSIMO;Z1F1CC9C96;SALDO Fatt.n. 14/PA  del 24/08/2017 Rif. Determina  n.285 del 30/12/2016-MANUTENZ. IMP. PUBBLICA ILLUMINAZIONE GIU.2017;12-09-2017;3930;1;486;1;Spese correnti;3;Acquisto di beni e servizi;2;Acquisto di servizi;15;Contratti di servizio pubblico;999;Altre spese per contratti di servizio pubblico;2017-09-13;
1493;1;"456,52";"456,52";FORZANO GIUSEPPE; ;Indennita' funzione Presidente Consiglio lug./ago. 2017;13-09-2017;1001;0;42;1;Spese correnti;3;Acquisto di beni e servizi;2;Acquisto di servizi;1;Organi e incarichi istituzionali dell'amministrazione;1;Organi istituzionali dell'amministrazione - Indennità;2017-09-14;
1494;1;"350,00";"1.400,00";ASPA GAETANO; ;ATTUAZIONE PROGETTO LAVORI SOCIALMENTE UTILI 14/08-12/09/2017;13-09-2017;1900;0;268;1;Spese correnti;4;Trasferimenti correnti;2;Trasferimenti correnti a Famiglie;1;Interventi previdenziali;999;Altri sussidi e assegni;2017-09-14;
1494;2;"350,00";"1.400,00";CAFFARELLI FIORENTINO; ;ATTUAZIONE PROGETTO LAVORI SOCIALMENTE UTILI 14/08-12/09/2017;13-09-2017;1900;0;268;1;Spese correnti;4;Trasferimenti correnti;2;Trasferimenti correnti a Famiglie;1;Interventi previdenziali;999;Altri sussidi e assegni;2017-09-18;
1494;3;"350,00";"1.400,00";GULLOTTI ANTONINO; ;ATTUAZIONE PROGETTO LAVORI SOCIALMENTE UTILI 14/08-12/09/2017;13-09-2017;1900;0;268;1;Spese correnti;4;Trasferimenti correnti;2;Trasferimenti correnti a Famiglie;1;Interventi previdenziali;999;Altri sussidi e assegni;2017-09-14;
1494;4;"350,00";"1.400,00";SCAFFIDI BENEDETTO; ;ATTUAZIONE PROGETTO LAVORI SOCIALMENTE UTILI 14/08-12/09/2017;13-09-2017;1900;0;268;1;Spese correnti;4;Trasferimenti correnti;2;Trasferimenti correnti a Famiglie;1;Interventi previdenziali;999;Altri sussidi e assegni;2017-09-14;
1495;1;"1.469,81";"1.469,81";CASSA PER I SERVIZI ENERGETICI E AMBIENTALI; ;SERVIZIO IDRICO INTEGRATO-PAGAMENTO COMPONENTI TARIFFARIE UI1-DICHIARAZIONE ANNO 2016 BIMESTRE 5 E DIFFERENZA DICHIARAZIONI 2014-2015;14-09-2017;1687;0;442;1;Spese correnti;4;Trasferimenti correnti;3;Trasferimenti correnti a Imprese;99;Trasferimenti correnti a altre imprese;999;Trasferimenti correnti a altre imprese;2017-09-25;
1499;1;"532,51";"532,51";ENEL ENERGIA SPA; ;SALDO Fatt.n. 004801262113  del 11/09/2017 FATT. AGO. 2017;19-09-2017;6030;5;412;1;Spese correnti;3;Acquisto di beni e servizi;2;Acquisto di servizi;5;Utenze e canoni;4;Energia elettrica;2017-09-19;
1500;1;"60,07";"5.211,40";ENEL ENERGIA SPA; ;SALDO Fatt.n. 004801248650  del 08/09/2017 FATT. LUG./ AGO. 2017;19-09-2017;6030;12;419;1;Spese correnti;3;Acquisto di beni e servizi;2;Acquisto di servizi;5;Utenze e canoni;4;Energia elettrica;2017-09-19;
1500;2;"198,96";"5.211,40";ENEL ENERGIA SPA; ;SALDO Fatt.n. 004801262111  del 11/09/2017 fatt. i.p. ago.2017;19-09-2017;6030;12;419;1;Spese correnti;3;Acquisto di beni e servizi;2;Acquisto di servizi;5;Utenze e canoni;4;Energia elettrica;2017-09-19;
1500;3;"4.953,37";"5.211,40";ENEL ENERGIA SPA; ;SALDO Fatt.n. 004801262112  del 11/09/2017 FATT. I.P. AGO.2017;19-09-2017;6030;12;419;1;Spese correnti;3;Acquisto di beni e servizi;2;Acquisto di servizi;5;Utenze e canoni;4;Energia elettrica;2017-09-19;
1501;1;"1.208,80";"1.208,80";SHOW LIVE EVENTI S.R.L.;Z2D1F8F062;SALDO Fatt.n. 4/E  del 31/08/2017 Affitto di impianto audio e luci.;19-09-2017;2000;1;214;1;Spese correnti;3;Acquisto di beni e servizi;2;Acquisto di servizi;2;"Organizzazione eventi, pubblicita` e servizi per trasferta";5;Organizzazione e partecipazione a manifestazioni e convegni;2017-09-19;
1502;1;"10.586,22";"10.586,22";SICULA TRASPORTI S.R.L.;6150991658;SALDO Fatt.n. 1483/03  del 31/07/2017 conferimento rifiuti in discarica luglio 2017;19-09-2017;1743;0;273;1;Spese correnti;3;Acquisto di beni e servizi;2;Acquisto di servizi;15;Contratti di servizio pubblico;5;Contratti di servizio per il conferimento in discarica dei rifiuti;2017-09-19;
1503;1;"700,00";"700,00";ASSOCIAZIONE CULTURALE TEATRALE SPORTIVA  LEDIMIGI;ZDF1F812BB;REALIZZAZIONE SPETTACOLI PROGRAMMA ESTATE 2017-A SCOLA DI MUGGHIERI;19-09-2017;2000;1;197;1;Spese correnti;3;Acquisto di beni e servizi;2;Acquisto di servizi;2;"Organizzazione eventi, pubblicita` e servizi per trasferta";5;Organizzazione e partecipazione a manifestazioni e convegni;2017-10-02;
1560;1;"32,88";"32,88";ZS INFORMATICA S.R.L.; ;SALDO Fatt.n. 143  del 21/07/2017 BROTHER MULTIFUNZIONE LASER;19-09-2017;2150;1;223;2;Spese in conto capitale;2;Investimenti fissi lordi e acquisto di terreni;1;Beni materiali;7;Hardware;999;Hardware n.a.c.;2017-09-20;
1561;1;"84,41";"84,41";MAIL BOXES DI GIUTTARI PAOLO FRANCESCO; ;SALDO Fatt.n. 27/2017  del 28/07/2017 MATERIALE PUBBLICITARIO ESTATE SAMPIETRINA 2017;19-09-2017;2000;1;194;1;Spese correnti;3;Acquisto di beni e servizi;2;Acquisto di servizi;2;"Organizzazione eventi, pubblicita` e servizi per trasferta";5;Organizzazione e partecipazione a manifestazioni e convegni;2017-09-20;
1563;1;"3.182,22";"3.182,22";CARTAREGIA COSIMO;Z571F8C9B3;SALDO Fatt.n. 17/PA  del 11/09/2017 Rif. Determina prot. 125  del 01/08/2017-MANUTENZIONE IMP. PUBBLICA ILLUMINAZIONE AGO.2017;20-09-2017;3930;1;211;1;Spese correnti;3;Acquisto di beni e servizi;2;Acquisto di servizi;15;Contratti di servizio pubblico;999;Altre spese per contratti di servizio pubblico;2017-09-20;
